bitfinex-derivatives/quotes_BTCF0:USTF0_20260214
["timestamp","ask_amount","ask_price","bid_price","bid_amount"]
[1771106060092,0.014307,69933.0,69928.0,0.014308]
[1771106060288,0.01436,69931.0,69929.0,0.014308]
[1771106061590,0.01436,69931.0,69928.0,0.014308]
[1771106062590,0.01436,69931.0,69927.0,0.014308]
[1771106063396,0.01436,69931.0,69928.0,0.014308]
[1771106063695,0.01436,69931.0,69928.0,0.028616]
[1771106063888,0.01436,69931.0,69930.0,0.014307]
[1771106064290,0.01436,69931.0,69928.0,0.014308]
[1771106064495,0.14312,69936.0,69932.0,0.014307]
[1771106064685,0.25213727,69934.0,69921.0,0.01436]
[1771106064891,0.014307,69931.0,69924.0,0.014308]
[1771106065099,0.014308,69929.0,69924.0,0.014308]
[1771106065596,0.014308,69928.0,69924.0,0.028668]
[1771106066394,0.014308,69929.0,69925.0,0.014308]
[1771106069697,0.028667,69931.0,69925.0,0.014308]
[1771106069994,0.014307,69931.0,69926.0,0.014308]
[1771106070196,0.01436,69934.0,69933.0,0.014307]
[1771106070502,0.01436,69936.0,69932.0,0.014307]
[1771106070798,0.028666,69936.0,69932.0,0.014307]
[1771106071396,0.01436,69936.0,69933.0,0.014307]
[1771106071899,0.014305,69943.0,69937.0,0.014306]
[1771106072200,0.01436,69943.0,69938.0,0.014306]
[1771106072398,0.01436,69943.0,69937.0,0.014306]
[1771106072399,0.028665,69943.0,69932.0,0.01436]
[1771106072597,0.028665,69943.0,69937.0,0.014306]
[1771106072796,0.028665,69942.0,69937.0,0.014306]
[1771106073000,0.028665,69942.0,69937.0,0.028612]
[1771106073199,0.028665,69942.0,69938.0,0.014306]
[1771106073603,0.028665,69942.0,69937.0,0.028612]
[1771106074105,0.028665,69942.0,69937.0,0.00929059]
[1771106074396,0.014305,69943.0,69937.0,0.00929059]
[1771106074604,0.01436,69943.0,69939.0,0.014306]
[1771106074896,0.014305,69942.0,69935.0,0.01436]
[1771106075105,0.014305,69942.0,69935.0,0.028666]
[1771106075303,0.028665,69943.0,69935.0,0.028666]
[1771106075802,0.014305,69940.0,69935.0,0.028666]
[1771106076301,0.014305,69940.0,69936.0,0.014306]
[1771106077700,0.014304,69947.0,69935.0,0.01436]
[1771106078002,0.028664,69946.0,69941.0,0.014305]
[1771106078398,0.028612,69943.0,69941.0,0.014305]
[1771106078803,0.028612,69942.0,69941.0,0.014305]
[1771106078993,0.014303,69953.0,69947.0,0.014304]
[1771106079194,0.028663,69952.0,69947.0,0.014304]
[1771106079397,0.028663,69952.0,69946.0,0.014304]
[1771106080001,0.22630437,69944.0,69935.0,0.157426]
[1771106080301,0.014305,69940.0,69935.0,0.157426]
[1771106082502,0.01436,69944.0,69937.0,0.014306]
[1771106082503,0.014305,69942.0,69937.0,0.014306]
[1771106082706,0.014305,69942.0,69937.0,0.028666]
[1771106083609,0.014305,69942.0,69937.0,0.01436]
[1771106087002,0.02861,69942.0,69937.0,0.01436]
[1771106087307,0.01001097,69944.0,69937.0,0.028666]
[1771106087708,0.014305,69943.0,69937.0,0.028666]
[1771106088311,0.014302,69957.0,69941.0,0.23624067]
[1771106088610,0.014304,69949.0,69943.0,0.014305]
[1771106088805,0.01436,69952.0,69946.0,0.014304]
[1771106088999,0.028663,69952.0,69946.0,0.014304]
[1771106089200,0.014303,69951.0,69946.0,0.014304]
[1771106089403,0.028663,69952.0,69946.0,0.014304]
[1771106090707,0.028663,69952.0,69947.0,0.014304]
[1771106090904,0.01436,69953.0,69948.0,0.014304]
[1771106091110,0.01436,69953.0,69949.0,0.014303]
[1771106091612,0.01436,69956.0,69953.0,0.014303]
[1771106092110,0.014303,69949.0,69936.0,0.014306]
[1771106092310,0.014303,69949.0,69944.0,0.014304]
[1771106092603,0.014303,69950.0,69945.0,0.01436]
[1771106092809,0.014304,69949.0,69945.0,0.01436]
[1771106093011,0.014303,69950.0,69945.0,0.01436]
[1771106095314,0.02577944,69953.0,69945.0,0.01436]
[1771106096316,0.014303,69951.0,69945.0,0.01436]
[1771106096717,0.014303,69951.0,69945.0,0.028664]
[1771106097013,0.14308,69958.0,69945.0,0.01436]
[1771106097211,0.0143,69967.0,69958.0,0.014302]
[1771106097411,0.01436,69966.0,69959.0,0.014301]
[1771106097624,0.01436,69966.0,69960.0,0.014301]
[1771106097817,0.02866,69966.0,69958.0,0.014301]
[1771106098017,0.02866,69966.0,69958.0,0.014302]
[1771106098217,0.02866,69965.0,69958.0,0.014302]
[1771106098822,0.02866,69965.0,69958.0,0.014301]
[1771106099220,0.0143,69964.0,69958.0,0.014301]
[1771106099721,0.02866,69964.0,69958.0,0.014301]
[1771106100218,0.01436,69964.0,69959.0,0.014301]
[1771106100615,0.02866,69964.0,69958.0,0.014302]
[1771106101323,0.01436,69964.0,69957.0,0.01436]
[1771106101519,0.014303,69953.0,69951.0,0.14308]
[1771106101815,0.014304,69947.0,69940.0,0.014305]
[1771106102017,0.014303,69950.0,69943.0,0.014305]
[1771106102217,0.014303,69949.0,69943.0,0.014305]
[1771106102518,0.014303,69950.0,69944.0,0.014305]
[1771106104222,0.014303,69950.0,69943.0,0.014305]
[1771106104416,0.014303,69950.0,69944.0,0.014305]
[1771106104617,0.028663,69951.0,69944.0,0.02861]
[1771106105323,0.014303,69950.0,69944.0,0.014305]
[1771106106324,0.014303,69950.0,69944.0,0.028609]
[1771106106523,0.014303,69950.0,69944.0,0.014304]
[1771106106726,0.014303,69950.0,69944.0,0.028608]
[1771106107321,0.014303,69950.0,69944.0,0.014304]
[1771106107923,0.014303,69951.0,69945.0,0.014304]
[1771106108825,0.014303,69950.0,69944.0,0.028664]
[1771106109232,0.014303,69950.0,69944.0,0.042968]
[1771106110230,0.014303,69950.0,69944.0,0.028664]
[1771106110732,0.014303,69950.0,69944.0,0.042968]
[1771106111629,0.014303,69951.0,69945.0,0.014304]
[1771106112627,0.014303,69950.0,69945.0,0.014304]
[1771106113329,0.014303,69950.0,69944.0,0.028664]
[1771106113525,0.014304,69949.0,69944.0,0.01436]
[1771106113730,0.014304,69947.0,69942.0,0.01436]
[1771106114332,0.014304,69948.0,69942.0,0.028665]
[1771106115431,0.014304,69947.0,69942.0,0.028665]
[1771106116036,0.014304,69948.0,69942.0,0.028665]
[1771106119840,0.028608,69948.0,69942.0,0.028665]
[1771106120237,0.014304,69948.0,69942.0,0.028665]
[1771106120443,0.014304,69948.0,69942.0,0.04297]
[1771106120645,0.014304,69948.0,69942.0,0.028665]
[1771106121545,0.028608,69948.0,69942.0,0.028665]
[1771106122046,0.014304,69948.0,69942.0,0.028665]
[1771106122545,0.014304,69948.0,69942.0,0.04297]
[1771106122735,0.014304,69948.0,69942.0,0.028665]
[1771106122941,0.014304,69948.0,69943.0,0.014305]
[1771106123546,0.014304,69948.0,69942.0,0.028665]
[1771106125138,0.014303,69950.0,69942.0,0.028665]
[1771106125344,0.028608,69948.0,69942.0,0.028665]
[1771106126749,0.014304,69948.0,69942.0,0.028665]
[1771106127140,0.028608,69948.0,69942.0,0.028665]
[1771106127654,0.014304,69948.0,69942.0,0.028665]
[1771106128350,0.028608,69948.0,69942.0,0.028665]
[1771106128551,0.014304,69947.0,69942.0,0.01436]
[1771106128944,0.014304,69947.0,69942.0,0.028665]
[1771106129146,0.014304,69948.0,69942.0,0.028665]
[1771106130547,0.24508776,69950.0,69939.0,0.14308]
[1771106130756,0.014306,69939.0,69935.0,0.01436]
[1771106130948,0.028665,69940.0,69934.0,0.014307]
[1771106131148,0.01436,69940.0,69930.0,0.014307]
[1771106131349,0.014306,69939.0,69933.0,0.014307]
[1771106131552,0.014306,69938.0,69932.0,0.014307]
[1771106132052,0.028666,69938.0,69931.0,0.014307]
[1771106132353,0.014306,69937.0,69931.0,0.014307]
[1771106133053,0.028666,69938.0,69932.0,0.014307]
[1771106133449,0.014306,69937.0,69931.0,0.014307]
[1771106133754,0.028666,69938.0,69932.0,0.014307]
[1771106134254,0.042972,69938.0,69931.0,0.014307]
[1771106134451,0.014306,69936.0,69930.0,0.014307]
[1771106134657,0.014306,69937.0,69931.0,0.014307]
[1771106135952,0.014306,69935.0,69928.0,0.01436]
[1771106136157,0.014306,69935.0,69929.0,0.014308]
[1771106137455,0.014306,69936.0,69929.0,0.014308]
[1771106137858,0.014306,69936.0,69928.0,0.028668]
[1771106138060,0.014307,69934.0,69928.0,0.028668]
[1771106138261,0.014306,69936.0,69928.0,0.01436]
[1771106138555,0.014307,69935.0,69928.0,0.01436]
[1771106138753,0.014307,69935.0,69929.0,0.014308]
[1771106139158,0.014307,69935.0,69929.0,0.028616]
[1771106139358,0.014307,69935.0,69929.0,0.014308]
[1771106140249,0.014307,69935.0,69928.0,0.01436]
[1771106140459,0.014307,69935.0,69929.0,0.014307]
[1771106140655,0.014306,69937.0,69925.0,0.014308]
[1771106140858,0.014308,69930.0,69925.0,0.01436]
[1771106141062,0.014308,69928.0,69925.0,0.01436]
[1771106141253,0.014307,69931.0,69925.0,0.01436]
[1771106141559,0.014308,69929.0,69925.0,0.01436]
[1771106141756,0.014308,69929.0,69922.0,0.157349]
[1771106141955,0.014308,69929.0,69922.0,0.171709]
[1771106142364,0.014308,69929.0,69923.0,0.014309]
[1771106144761,0.01436,69930.0,69917.0,0.01431]
[1771106145061,0.014309,69924.0,69919.0,0.01431]
[1771106145661,0.014309,69924.0,69918.0,0.02867]
[1771106147163,0.014309,69924.0,69919.0,0.01431]
[1771106148366,0.014309,69924.0,69918.0,0.02867]
[1771106149161,0.028668,69926.0,69919.0,0.014309]
[1771106149363,0.028668,69926.0,69920.0,0.014309]
[1771106150265,0.014304,69949.0,69934.0,0.014307]
[1771106150565,0.014305,69941.0,69934.0,0.014306]
[1771106150864,0.15744,69948.0,69934.0,0.014306]
[1771106150865,0.01436,69940.0,69934.0,0.014306]
[1771106151065,0.01436,69939.0,69934.0,0.014306]
[1771106151763,0.01436,69939.0,69935.0,0.014306]
[1771106152864,0.01436,69938.0,69935.0,0.014306]
[1771106153458,0.01436,69938.0,69936.0,0.014306]
[1771106154761,0.23430801,69961.0,69940.0,0.23452685]
[1771106154959,0.014303,69952.0,69946.0,0.014304]
[1771106155159,0.01436,69951.0,69947.0,0.014304]
[1771106155559,0.01436,69951.0,69948.0,0.014304]
[1771106157272,0.14308,69955.0,69950.0,0.014303]
[1771106157466,0.01436,69954.0,69950.0,0.014303]
[1771106157766,0.01436,69953.0,69950.0,0.014303]
[1771106158869,0.01436,69952.0,69950.0,0.014303]
[1771106160476,0.01436,69952.0,69949.0,0.014303]
[1771106161877,0.01436,69952.0,69944.0,0.01436]
[1771106161878,0.23430801,69951.0,69930.0,0.23452685]
[1771106162171,0.014306,69939.0,69932.0,0.01436]
[1771106162472,0.014305,69942.0,69935.0,0.014306]
[1771106162672,0.014305,69940.0,69934.0,0.014307]
[1771106162871,0.014306,69939.0,69933.0,0.014307]
[1771106163273,0.01436,69941.0,69937.0,0.014306]
[1771106163473,0.01436,69941.0,69938.0,0.014306]
[1771106163667,0.014304,69948.0,69938.0,0.014306]
[1771106163668,0.01436,69943.0,69938.0,0.24883285]
[1771106163878,0.01436,69944.0,69940.0,0.014305]
[1771106164175,0.01436,69944.0,69941.0,0.014305]
[1771106165175,0.07863141,69949.0,69946.0,0.014304]
[1771106165373,0.01436,69948.0,69946.0,0.014304]
[1771106165579,0.157383,69953.0,69949.0,0.014303]
[1771106166078,0.01436,69952.0,69951.0,0.014303]
[1771106166277,0.01436,69952.0,69950.0,0.014303]
[1771106167174,0.01436,69951.0,69949.0,0.014303]
[1771106167472,0.01436,69950.0,69949.0,0.014303]
[1771106167677,0.01436,69950.0,69948.0,0.014304]
[1771106168078,0.014303,69953.0,69949.0,0.014303]
[1771106168377,0.01436,69952.0,69948.0,0.014304]
[1771106169174,0.01436,69952.0,69946.0,0.014304]
[1771106169478,0.028663,69951.0,69946.0,0.014304]
[1771106169678,0.014303,69950.0,69945.0,0.014304]
[1771106169880,0.014304,69947.0,69943.0,0.014305]
[1771106170283,0.014303,69950.0,69944.0,0.014305]
[1771106170480,0.014304,69947.0,69942.0,0.014305]
[1771106171079,0.014304,69947.0,69943.0,0.014305]
[1771106172078,0.014304,69946.0,69942.0,0.014305]
[1771106172383,0.014304,69947.0,69943.0,0.014305]
[1771106175886,0.014304,69948.0,69943.0,0.014305]
[1771106177589,0.014304,69947.0,69943.0,0.014305]
[1771106177787,0.014304,69946.0,69942.0,0.014305]
[1771106177978,0.014304,69946.0,69941.0,0.028665]
[1771106178182,0.014304,69945.0,69941.0,0.028665]
[1771106178789,0.014304,69946.0,69942.0,0.014305]
[1771106178990,0.014304,69945.0,69941.0,0.01436]
[1771106179383,0.014304,69945.0,69941.0,0.028665]
[1771106179689,0.014304,69947.0,69943.0,0.014305]
[1771106180585,0.014304,69946.0,69941.0,0.01436]
[1771106180778,0.014304,69946.0,69941.0,0.028665]
[1771106181681,0.014305,69944.0,69941.0,0.01436]
[1771106181882,0.014304,69946.0,69941.0,0.01436]
[1771106182285,0.014305,69944.0,69941.0,0.01436]
[1771106182485,0.014304,69946.0,69941.0,0.04297]
[1771106182685,0.014304,69946.0,69941.0,0.01436]
[1771106182980,0.028608,69946.0,69941.0,0.028665]
[1771106183186,0.014304,69948.0,69941.0,0.01436]
[1771106183990,0.014304,69946.0,69941.0,0.01436]
[1771106184383,0.014305,69944.0,69941.0,0.01436]
[1771106186191,0.014307,69934.0,69927.0,0.14308]
[1771106186387,0.014306,69936.0,69931.0,0.014307]
[1771106186693,0.014306,69936.0,69932.0,0.01436]
[1771106186891,0.014306,69935.0,69932.0,0.01436]
[1771106187093,0.014306,69938.0,69932.0,0.01436]
[1771106187394,0.014306,69936.0,69932.0,0.01436]
[1771106187995,0.014306,69937.0,69932.0,0.01436]
[1771106188488,0.014306,69935.0,69930.0,0.014307]
[1771106188688,0.014306,69936.0,69931.0,0.01436]
[1771106189089,0.014306,69937.0,69931.0,0.028667]
[1771106189294,0.01436,69940.0,69932.0,0.014307]
[1771106189591,0.01436,69940.0,69935.0,0.014306]
[1771106189791,0.01436,69939.0,69935.0,0.014306]
[1771106193797,0.014305,69940.0,69935.0,0.014306]
[1771106194000,0.028665,69940.0,69935.0,0.014306]
[1771106195203,0.042971,69940.0,69935.0,0.014306]
[1771106195402,0.014306,69939.0,69934.0,0.014307]
[1771106195800,0.014306,69939.0,69934.0,0.014306]
[1771106196200,0.014306,69938.0,69933.0,0.014307]
[1771106197502,0.014306,69936.0,69931.0,0.028667]
[1771106198596,0.014307,69933.0,69931.0,0.01436]
[1771106198898,0.014307,69933.0,69920.0,0.23289466]
[1771106198899,0.014309,69923.0,69918.0,0.15744]
[1771106199100,0.014309,69924.0,69918.0,0.17175]
[1771106199301,0.014309,69924.0,69918.0,0.18606]
[1771106199602,0.014309,69924.0,69918.0,0.17175]
[1771106199996,0.014309,69924.0,69918.0,0.18606]
[1771106200401,0.014309,69924.0,69919.0,0.01431]
[1771106200594,0.014308,69925.0,69919.0,0.01431]
[1771106200902,0.01436,69927.0,69922.0,0.014309]
[1771106202805,0.01436,69927.0,69923.0,0.014309]
[1771106203404,0.01436,69927.0,69922.0,0.014309]
[1771106207007,0.028668,69927.0,69921.0,0.028669]
[1771106207208,0.028668,69927.0,69922.0,0.014309]
[1771106207907,0.014309,69925.0,69920.0,0.014309]
[1771106208204,0.01436,69927.0,69920.0,0.014309]
[1771106208400,0.01436,69927.0,69923.0,0.014309]
[1771106210107,0.01436,69927.0,69923.0,0.028618]
[1771106210307,0.01436,69927.0,69924.0,0.014309]
[1771106210909,0.014309,69921.0,69915.0,0.01431]
[1771106211110,0.014309,69923.0,69915.0,0.01431]
[1771106211304,0.014309,69922.0,69917.0,0.01431]
[1771106211505,0.014308,69926.0,69918.0,0.01431]
[1771106211797,0.014309,69925.0,69919.0,0.01431]
[1771106212004,0.014308,69926.0,69920.0,0.014309]
[1771106213109,0.028616,69926.0,69920.0,0.014309]
[1771106213311,0.014308,69925.0,69919.0,0.01431]
[1771106214204,0.028668,69926.0,69920.0,0.014309]
[1771106214410,0.028668,69926.0,69921.0,0.014309]
[1771106215112,0.01436,69926.0,69921.0,0.014309]
[1771106216604,0.028668,69926.0,69920.0,0.014309]
[1771106219106,0.014308,69925.0,69918.0,0.02867]
[1771106219308,0.014309,69922.0,69918.0,0.01436]
[1771106219808,0.014309,69922.0,69917.0,0.01431]
[1771106220004,0.014311,69915.0,69903.0,0.028673]
[1771106220213,0.01431,69918.0,69911.0,0.014311]
[1771106220402,0.01431,69917.0,69911.0,0.028671]
[1771106220803,0.01431,69918.0,69912.0,0.014311]
[1771106221013,0.014307,69931.0,69923.0,0.014309]
[1771106221209,0.01436,69930.0,69920.0,0.014309]
[1771106221508,0.01436,69930.0,69928.0,0.014308]
[1771106221904,0.01436,69930.0,69927.0,0.014308]
[1771106222709,0.01436,69930.0,69927.0,0.028616]
[1771106223219,0.014307,69933.0,69928.0,0.014308]
[1771106223416,0.01436,69932.0,69928.0,0.014308]
[1771106223917,0.028667,69932.0,69927.0,0.014308]
[1771106224313,0.014306,69938.0,69932.0,0.014307]
[1771106224514,0.01436,69937.0,69936.0,0.014306]
[1771106224718,0.01436,69937.0,69935.0,0.014306]
[1771106225014,0.014305,69941.0,69936.0,0.014306]
[1771106225316,0.01436,69940.0,69935.0,0.014306]
[1771106225512,0.01436,69939.0,69937.0,0.014306]
[1771106225712,0.014305,69943.0,69937.0,0.014306]
[1771106225713,0.01436,69940.0,69938.0,0.014306]
[1771106225912,0.01436,69941.0,69940.0,0.014306]
[1771106226111,0.00051998,69941.0,69939.0,0.014306]
[1771106226515,0.00051998,69941.0,69940.0,0.014306]
[1771106226716,0.00051998,69941.0,69939.0,0.014306]
[1771106226918,0.00051998,69941.0,69940.0,0.014306]
[1771106227116,0.00051998,69941.0,69938.0,0.014306]
[1771106227415,0.22187786,69955.0,69939.0,0.014306]
[1771106227618,0.22187786,69955.0,69936.0,0.21510525]
[1771106227619,0.014304,69947.0,69941.0,0.014305]
[1771106227914,0.01436,69946.0,69942.0,0.014305]
[1771106228308,0.028664,69946.0,69942.0,0.014305]
[1771106228713,0.028664,69946.0,69941.0,0.028611]
[1771106228915,0.028664,69946.0,69942.0,0.014305]
[1771106229924,0.01436,69946.0,69943.0,0.014305]
[1771106230311,0.01436,69947.0,69946.0,0.014304]
[1771106230624,0.014303,69952.0,69948.0,0.014304]
[1771106230920,0.014302,69958.0,69952.0,0.014303]
[1771106230921,0.01436,69953.0,69952.0,0.014303]
[1771106231424,0.014302,69957.0,69952.0,0.014303]
[1771106231624,0.014302,69957.0,69950.0,0.014303]
[1771106231625,0.028662,69956.0,69951.0,0.014303]
[1771106232121,0.01482198,69956.0,69952.0,0.014303]
[1771106233222,0.01482198,69956.0,69951.0,0.014303]
[1771106233625,0.00051998,69956.0,69952.0,0.014303]
[1771106233925,0.00051998,69956.0,69953.0,0.014303]
[1771106234625,0.00051998,69956.0,69949.0,0.014306]
[1771106234921,0.01436,69955.0,69950.0,0.028609]
[1771106235128,0.01436,69955.0,69952.0,0.014303]
[1771106235317,0.01436,69955.0,69951.0,0.028609]
[1771106235516,0.028662,69955.0,69952.0,0.014306]
[1771106235918,0.01436,69955.0,69953.0,0.014306]
[1771106236429,0.01436,69955.0,69954.0,0.014306]
[1771106236626,0.014302,69957.0,69954.0,0.014306]
[1771106237019,0.01436,69958.0,69954.0,0.014306]
[1771106237626,0.014302,69957.0,69954.0,0.014306]
[1771106238127,0.028604,69957.0,69954.0,0.014306]
[1771106238316,0.014302,69957.0,69954.0,0.014306]
[1771106239729,0.028604,69957.0,69954.0,0.014306]
[1771106240133,0.014302,69957.0,69954.0,0.014306]
[1771106242433,0.028662,69958.0,69954.0,0.014306]
[1771106242638,0.014302,69956.0,69954.0,0.014306]
[1771106243133,0.014302,69955.0,69954.0,0.014306]
[1771106243835,0.014303,69952.0,69951.0,0.01436]
[1771106244035,0.014303,69952.0,69950.0,0.01436]
[1771106244228,0.014303,69953.0,69950.0,0.01436]
[1771106245134,0.014303,69954.0,69950.0,0.028663]
[1771106245536,0.014302,69955.0,69950.0,0.028663]
[1771106245737,0.014302,69955.0,69950.0,0.01436]
[1771106246736,0.014303,69953.0,69950.0,0.01436]
[1771106249431,0.014303,69954.0,69950.0,0.01436]
[1771106249830,0.014243,69954.0,69950.0,0.01436]
[1771106250634,0.014302,69955.0,69948.0,0.014304]
[1771106250837,0.014303,69954.0,69948.0,0.014304]
[1771106251332,0.014303,69954.0,69948.0,0.028608]
[1771106251840,0.014303,69954.0,69949.0,0.01436]
[1771106253036,0.014303,69954.0,69949.0,0.028663]
[1771106254346,0.014303,69954.0,69949.0,0.01436]
[1771106255046,0.014303,69953.0,69949.0,0.01436]
[1771106255645,0.01436,69957.0,69951.0,0.014303]
[1771106255846,0.028662,69957.0,69951.0,0.014303]
[1771106256847,0.014302,69956.0,69951.0,0.014303]
[1771106257046,0.028662,69956.0,69951.0,0.014303]
[1771106258940,0.028662,69956.0,69950.0,0.014303]
[1771106259938,0.028662,69956.0,69951.0,0.014303]
[1771106260143,0.01436,69956.0,69951.0,0.014303]
[1771106260450,0.01436,69956.0,69952.0,0.014303]
[1771106260650,0.01436,69956.0,69951.0,0.014303]
[1771106261151,0.01436,69956.0,69951.0,0.028606]
[1771106261449,0.01436,69956.0,69952.0,0.014303]
[1771106262449,0.014302,69957.0,69952.0,0.014303]
[1771106262651,0.01436,69956.0,69952.0,0.014303]
[1771106265652,0.028662,69956.0,69951.0,0.014303]
[1771106266150,0.028662,69956.0,69952.0,0.014303]
[1771106267243,0.014302,69955.0,69950.0,0.014303]
[1771106267451,0.01436,69956.0,69952.0,0.014303]
[1771106268554,0.028662,69956.0,69951.0,0.014303]
[1771106269255,0.014302,69955.0,69951.0,0.014303]
[1771106271659,0.014302,69955.0,69950.0,0.028606]
[1771106271859,0.014302,69955.0,69950.0,0.014303]
[1771106273359,0.014302,69955.0,69949.0,0.028663]
[1771106274359,0.014302,69955.0,69950.0,0.014303]
[1771106274854,0.014302,69955.0,69949.0,0.028663]
[1771106275252,0.014302,69955.0,69950.0,0.014303]
[1771106276153,0.014302,69955.0,69950.0,0.028606]
[1771106276955,0.014302,69955.0,69950.0,0.014303]
[1771106278756,0.21401527,69952.0,69943.0,0.157345]
[1771106278958,0.21401527,69952.0,69946.0,0.014304]
[1771106278959,0.014303,69951.0,69946.0,0.014304]
[1771106279155,0.01436,69950.0,69941.0,0.014305]
[1771106279363,0.01436,69950.0,69948.0,0.014304]
[1771106280161,0.01436,69950.0,69947.0,0.014304]
[1771106281065,0.028663,69950.0,69944.0,0.01436]
[1771106281255,0.014304,69947.0,69944.0,0.01436]
[1771106281655,0.014304,69946.0,69944.0,0.01436]
[1771106281851,0.014304,69945.0,69942.0,0.01436]
[1771106282051,0.014304,69945.0,69935.0,0.157346]
[1771106282052,0.014305,69941.0,69935.0,0.157346]
[1771106282256,0.014303,69952.0,69935.0,0.157346]
[1771106282257,0.21401527,69964.0,69950.0,0.014303]
[1771106282460,0.014302,69957.0,69951.0,0.014303]
[1771106282654,0.01436,69956.0,69951.0,0.014303]
[1771106283262,0.01436,69956.0,69952.0,0.014303]
[1771106283467,0.01436,69956.0,69949.0,0.014303]
[1771106283758,0.028604,69957.0,69950.0,0.014303]
[1771106283958,0.01436,69955.0,69953.0,0.014303]
[1771106284264,0.01436,69958.0,69953.0,0.014303]
[1771106284964,0.028662,69958.0,69953.0,0.014303]
[1771106285163,0.014302,69958.0,69952.0,0.014303]
[1771106285359,0.014302,69956.0,69951.0,0.014303]
[1771106286067,0.01436,69957.0,69951.0,0.014303]
[1771106287855,0.014302,69956.0,69951.0,0.014303]
[1771106289263,0.01436,69957.0,69954.0,0.014302]
[1771106290169,0.01436,69957.0,69952.0,0.014303]
[1771106290367,0.028662,69957.0,69950.0,0.01436]
[1771106290571,0.014303,69954.0,69950.0,0.01436]
[1771106290763,0.014303,69954.0,69949.0,0.014303]
[1771106291270,0.014302,69955.0,69949.0,0.014303]
[1771106292769,0.014302,69955.0,69950.0,0.014303]
[1771106293269,0.01436,69957.0,69950.0,0.014303]
[1771106293467,0.014303,69953.0,69948.0,0.028664]
[1771106293669,0.014302,69954.0,69949.0,0.014303]
[1771106293973,0.014302,69956.0,69950.0,0.014303]
[1771106294567,0.014302,69955.0,69945.0,0.01436]
[1771106294773,0.014302,69955.0,69949.0,0.014303]
[1771106294973,0.014302,69955.0,69949.0,0.028606]
[1771106295174,0.014302,69955.0,69950.0,0.014303]
[1771106299378,0.23170289,69955.0,69948.0,0.01436]
[1771106299577,0.014303,69951.0,69944.0,0.1574]
[1771106299773,0.014303,69951.0,69946.0,0.014304]
[1771106300680,0.01436,69950.0,69946.0,0.014304]
[1771106300882,0.01436,69950.0,69947.0,0.014304]
[1771106302382,0.01436,69950.0,69946.0,0.014304]
[1771106302883,0.028663,69950.0,69945.0,0.014304]
[1771106304082,0.01436,69950.0,69945.0,0.028608]
[1771106304785,0.01436,69950.0,69945.0,0.014304]
[1771106305177,0.01436,69950.0,69945.0,0.028608]
[1771106306177,0.014304,69947.0,69942.0,0.01436]
[1771106306384,0.014304,69946.0,69942.0,0.01436]
[1771106306584,0.014304,69945.0,69942.0,0.01436]
[1771106306884,0.014304,69946.0,69942.0,0.01436]
[1771106307277,0.014303,69949.0,69942.0,0.01436]
[1771106307278,0.014304,69945.0,69942.0,0.01436]
[1771106307478,0.014304,69946.0,69942.0,0.01436]
[1771106307689,0.014304,69949.0,69943.0,0.014305]
[1771106308179,0.014304,69949.0,69944.0,0.014304]
[1771106308377,0.23170489,69949.0,69942.0,0.028665]
[1771106308578,0.014304,69948.0,69942.0,0.028665]
[1771106308874,0.014304,69948.0,69943.0,0.014305]
[1771106309076,0.014304,69946.0,69936.0,0.14304]
[1771106309277,0.014305,69940.0,69938.0,0.01436]
[1771106309777,0.014306,69939.0,69938.0,0.01436]
[1771106309981,0.014305,69940.0,69938.0,0.01436]
[1771106310182,0.014305,69940.0,69936.0,0.14304]
[1771106310381,0.01436,69944.0,69942.0,0.014305]
[1771106310683,0.01436,69947.0,69946.0,0.014304]
[1771106310883,0.01436,69949.0,69946.0,0.014304]
[1771106311386,0.014303,69951.0,69946.0,0.014304]
[1771106311587,0.01436,69950.0,69946.0,0.014304]
[1771106312687,0.028663,69950.0,69946.0,0.014304]
[1771106312986,0.01436,69949.0,69946.0,0.014304]
[1771106313289,0.01436,69949.0,69945.0,0.014304]
[1771106314891,0.01436,69949.0,69946.0,0.014304]
[1771106316693,0.01436,69949.0,69945.0,0.014304]
[1771106317689,0.01436,69949.0,69940.0,0.028665]
[1771106317892,0.014305,69943.0,69940.0,0.01436]
[1771106318097,0.014305,69944.0,69940.0,0.01436]
[1771106318395,0.014304,69949.0,69944.0,0.014304]
[1771106318601,0.028664,69949.0,69945.0,0.014304]
[1771106318796,0.028664,69949.0,69944.0,0.014304]
[1771106319001,0.028664,69949.0,69944.0,0.028608]
[1771106319298,0.028664,69949.0,69944.0,0.014304]
[1771106320797,0.042968,69949.0,69944.0,0.014304]
[1771106321395,0.014304,69948.0,69944.0,0.014304]
[1771106323894,0.014304,69948.0,69943.0,0.014305]
[1771106324597,0.014304,69947.0,69943.0,0.014305]
[1771106325391,0.028664,69949.0,69943.0,0.014305]
[1771106325587,0.028664,69949.0,69945.0,0.014304]
[1771106325788,0.028664,69949.0,69944.0,0.014304]
[1771106326399,0.042968,69949.0,69944.0,0.014304]
[1771106326591,0.028664,69949.0,69944.0,0.014304]
[1771106328598,0.014301,69960.0,69942.0,0.2213264]
[1771106328899,0.014302,69956.0,69951.0,0.014303]
[1771106329099,0.01436,69955.0,69951.0,0.028606]
[1771106329697,0.01436,69955.0,69951.0,0.014303]
[1771106330400,0.14308,69959.0,69958.0,0.014302]
[1771106330599,0.001,69960.0,69958.0,0.014302]
[1771106330904,0.01436,69959.0,69958.0,0.014302]
[1771106331601,0.01436,69959.0,69957.0,0.014302]